bitfinex-derivatives/quotes_BTCF0:USTF0_20260106
["timestamp","ask_amount","ask_price","bid_price","bid_amount"]
[1767666118681,0.12671719,93822.0,93810.0,0.01066]
[1767666118888,0.12671719,93822.0,93801.0,0.01301837]
[1767666118889,0.12671719,93822.0,93807.0,0.01066]
[1767666119386,0.12671719,93822.0,93809.0,0.01066]
[1767666120587,0.12671719,93822.0,93803.0,0.010661]
[1767666120588,0.01306124,93821.0,93803.0,0.010661]
[1767666120787,0.01306124,93811.0,93800.0,0.010661]
[1767666120995,0.01291247,93809.0,93790.0,0.09829249]
[1767666121188,0.01291247,93809.0,93791.0,0.09068]
[1767666121683,0.1058236,93812.0,93791.0,0.19445457]
[1767666121888,0.1058236,93812.0,93805.0,0.01066]
[1767666122086,0.01291247,93812.0,93805.0,0.01066]
[1767666122283,0.0172053,93822.0,93807.0,0.01066]
[1767666122486,0.11120496,93820.0,93804.0,0.010661]
[1767666122790,0.01291247,93819.0,93804.0,0.010661]
[1767666126787,0.01291247,93818.0,93804.0,0.010661]
[1767666127088,0.01291247,93817.0,93804.0,0.010661]
[1767666127287,0.02985789,93822.0,93805.0,0.01066]
[1767666127789,0.01291247,93821.0,93805.0,0.01066]
[1767666128296,0.01291247,93821.0,93802.0,0.010661]
[1767666128598,0.01291247,93821.0,93804.0,0.01066]
[1767666128797,0.11120496,93820.0,93804.0,0.01066]
[1767666129197,0.01291247,93819.0,93804.0,0.01066]
[1767666130094,0.01291247,93819.0,93801.0,0.09128724]
[1767666130095,0.11260509,93822.0,93801.0,0.10377457]
[1767666130294,0.02985789,93822.0,93807.0,0.01066]
[1767666131288,0.09068,93821.0,93807.0,0.01066]
[1767666131497,0.09068,93821.0,93804.0,0.02314733]
[1767666131697,0.09068,93821.0,84795.0,0.03021685]
[1767666131698,0.01066,93805.0,93787.0,0.010662]
[1767666131897,0.01066,93805.0,93784.0,0.09128724]
[1767666131898,0.09829249,93801.0,93789.0,0.010662]
[1767666132098,0.01291247,93803.0,93785.0,0.010663]
[1767666132804,0.02357347,93803.0,93785.0,0.010663]
[1767666133104,0.01291247,93803.0,93787.0,0.010662]
[1767666133804,0.01291247,93803.0,93784.0,0.58196724]
[1767666134003,0.09068,93809.0,93784.0,0.09068]
[1767666134004,0.09829249,93800.0,93784.0,0.09068]
[1767666134194,0.09829249,93800.0,93745.0,0.053338]
[1767666134195,0.01291247,93789.0,93773.0,0.101344]
[1767666134400,0.01291247,93788.0,93774.0,0.010664]
[1767666134799,0.01291247,93784.0,93767.0,0.010665]
[1767666135005,0.09829249,93780.0,93769.0,0.010664]
[1767666135298,0.09829249,93780.0,93766.0,0.09068]
[1767666135299,0.01291247,93783.0,93766.0,0.09068]
[1767666135506,0.01291247,93779.0,93761.0,0.10195224]
[1767666135709,0.01291247,93770.0,93758.0,0.09068]
[1767666135892,0.01291247,93770.0,93758.0,0.101346]
[1767666136104,0.01291247,93770.0,93758.0,0.010666]
[1767666136304,0.01291247,93774.0,93758.0,0.010666]
[1767666136506,0.11120496,93770.0,93752.0,0.09128724]
[1767666136814,0.01291247,93769.0,93755.0,0.010666]
[1767666137210,0.09565967,93772.0,93755.0,0.010666]
[1767666137411,0.10857214,93772.0,93755.0,0.010666]
[1767666137805,0.10857214,93772.0,93751.0,0.09068]
[1767666138012,0.10857214,93772.0,93756.0,0.010666]
[1767666139227,0.01291247,93771.0,93753.0,0.010666]
[1767666140414,0.09829249,93770.0,93753.0,0.010666]
[1767666141117,0.09829249,93770.0,93755.0,0.010666]
[1767666142017,0.11120496,93770.0,93755.0,0.010666]
[1767666142211,0.11120496,93770.0,93752.0,0.010666]
[1767666142412,0.01291247,93765.0,93751.0,0.09068]
[1767666144710,0.01291247,93768.0,93751.0,0.09068]
[1767666146313,0.01291247,93768.0,93751.0,0.101347]
[1767666149119,0.02357747,93768.0,93751.0,0.101347]
[1767666151126,0.010665,93766.0,93751.0,0.20263294]
[1767666151821,0.010664,93770.0,93753.0,0.12261894]
[1767666153129,0.09068,93773.0,93755.0,0.02274244]
[1767666153320,0.09829249,93770.0,93755.0,0.02274244]
[1767666154825,4.9e-07,93770.0,93755.0,0.01207644]
[1767666155024,0.09068,93788.0,93776.0,0.010664]
[1767666155223,0.09068,93790.0,93775.0,0.010664]
[1767666156521,0.09068,93790.0,93774.0,0.0998765]
[1767666156932,0.10265747,93790.0,93771.0,0.02274044]
[1767666157130,0.01197747,93789.0,93771.0,0.010664]
[1767666158631,0.01197747,93789.0,93774.0,0.010664]
[1767666159337,0.09068,93790.0,93774.0,0.010664]
[1767666160429,0.09068,93790.0,93777.0,0.010664]
[1767666160630,0.09068,93790.0,93774.0,0.11195294]
[1767666160826,0.09068,93790.0,93771.0,0.01207644]
[1767666161031,0.01197747,93789.0,93772.0,0.010664]
[1767666161233,0.01197747,93789.0,93762.0,0.09068]
[1767666161234,0.09068,93790.0,93775.0,0.11195294]
[1767666161726,0.09068,93790.0,93773.0,0.010664]
[1767666162730,0.10265747,93790.0,93773.0,0.010664]
[1767666163035,0.10265747,93790.0,93772.0,0.010664]
[1767666163239,0.10265747,93790.0,93775.0,0.010664]
[1767666163438,0.10265747,93790.0,93771.0,0.01207644]
[1767666163629,0.09068,93790.0,93778.0,0.010663]
[1767666164534,0.01197747,93795.0,93778.0,0.010663]
[1767666164739,0.09068,93794.0,93778.0,0.010663]
[1767666164934,0.09068,93794.0,93774.0,0.01207644]
[1767666165135,0.09068,93794.0,93778.0,0.010663]
[1767666165337,0.09068,93794.0,93777.0,0.010664]
[1767666165534,0.11141822,93793.0,93774.0,0.01207644]
[1767666165734,0.11141822,93793.0,93775.0,0.010664]
[1767666165934,0.11141822,93793.0,93778.0,0.010664]
[1767666167442,0.11141822,93793.0,93774.0,0.01207644]
[1767666168139,0.09944075,93793.0,93780.0,0.010663]
[1767666169747,0.01197747,93791.0,93777.0,0.010664]
[1767666170041,0.01197747,93791.0,93781.0,0.010663]
[1767666170241,0.09944075,93792.0,93781.0,0.010663]
[1767666171237,0.09944075,93792.0,93778.0,0.010663]
[1767666171445,0.11141822,93792.0,93781.0,0.010663]
[1767666172045,0.09944075,93799.0,93783.0,0.010663]
[1767666172238,0.09068,93798.0,93782.0,0.01207644]
[1767666172438,0.11141822,93797.0,93780.0,0.010663]
[1767666172838,0.11141822,93795.0,93780.0,0.010663]
[1767666173038,0.09068,93798.0,93763.0,0.010665]
[1767666173039,0.09944075,93791.0,93777.0,0.010664]
[1767666173239,0.11141822,93780.0,93770.0,0.010664]
[1767666173444,0.09944075,93780.0,93772.0,0.010664]
[1767666173640,0.09944075,93780.0,93774.0,0.010664]
[1767666174038,0.01197747,93783.0,93776.0,0.010664]
[1767666174346,0.0137886,93793.0,93776.0,0.010664]
[1767666174941,0.0137886,93793.0,93767.0,0.0949636]
[1767666175137,0.0137886,93793.0,93780.0,0.010663]
[1767666175948,0.0137886,93793.0,93777.0,0.010664]
[1767666176151,0.09068,93794.0,93777.0,0.01344905]
[1767666176640,0.09068,93794.0,93763.0,0.010665]
[1767666176641,0.0137886,93794.0,93780.0,0.010663]
[1767666176848,0.0137886,93793.0,93779.0,0.010663]
[1767666177037,0.0137886,93793.0,93773.0,0.01344905]
[1767666177743,0.0137886,93793.0,93773.0,0.10841265]
[1767666178039,0.0137886,93793.0,93781.0,0.010663]
[1767666179542,0.09068,93795.0,93781.0,0.010663]
[1767666179742,0.1044686,93795.0,93781.0,0.010663]
[1767666180144,0.0137886,93794.0,93778.0,0.010663]
[1767666180347,0.0137886,93794.0,93774.0,0.010664]
[1767666180549,0.0137886,93793.0,93777.0,0.010664]
[1767666180744,0.0137886,93791.0,93777.0,0.010664]
[1767666180947,0.01420579,93790.0,93777.0,0.010664]
[1767666181347,0.01420579,93781.0,93761.0,0.09139009]
[1767666181549,0.01420579,93768.0,93753.0,0.010666]
[1767666181744,0.10668983,93767.0,93751.0,0.09068]
[1767666181944,0.10668983,93766.0,93751.0,0.09068]
[1767666182150,0.01420579,93762.0,93747.0,0.09068]
[1767666182348,0.09068,93775.0,93748.0,0.010667]
[1767666182349,0.01420579,93760.0,93748.0,0.010667]
[1767666182646,0.01420579,93764.0,93747.0,0.09068]
[1767666182852,0.09248404,93766.0,93747.0,0.09068]
[1767666183154,0.10668983,93766.0,93747.0,0.09068]
[1767666184052,0.10668983,93766.0,93750.0,0.010667]
[1767666184957,0.10668983,93766.0,93752.0,0.010666]
[1767666186351,0.053297,93819.0,93747.0,0.09068]
[1767666186352,0.09248404,93779.0,93763.0,0.010665]
[1767666186555,0.09068,93778.0,93763.0,0.01343296]
[1767666186756,0.09068,93781.0,93765.0,0.010665]
[1767666187149,0.10488579,93781.0,93765.0,0.010665]
[1767666187350,0.09068,93781.0,93765.0,0.010665]
[1767666187550,0.10488579,93781.0,93762.0,0.10205509]
[1767666187749,0.19736983,93781.0,93765.0,0.010665]
[1767666187949,0.18316404,93781.0,93765.0,0.010665]
[1767666188345,0.09068,93785.0,93770.0,0.01343296]
[1767666188856,0.09068,93785.0,93772.0,0.010664]
[1767666189754,0.10488579,93785.0,93772.0,0.010664]
[1767666190959,0.00213268,93779.0,93772.0,0.010664]
[1767666193051,0.09068,93792.0,93775.0,0.01343296]
[1767666193252,0.02486679,93797.0,93779.0,0.010663]
[1767666193253,0.09068,93793.0,93779.0,0.010663]
[1767666194147,0.10488579,93793.0,93775.0,0.010664]
[1767666194451,0.01420579,93792.0,93775.0,0.010664]
[1767666195148,0.01420579,93792.0,93773.0,0.01343296]
[1767666195351,0.09248404,93793.0,93773.0,0.01343296]
[1767666195749,0.09248404,93793.0,93779.0,0.010663]
[1767666196769,0.10668983,93793.0,93779.0,0.010663]
[1767666197070,0.09068,93796.0,93779.0,0.010663]
[1767666197470,0.09068,93796.0,93784.0,0.010663]
[1767666197667,0.09068,93796.0,93778.0,0.01343296]
[1767666198168,0.10488579,93796.0,93777.0,0.09139009]
[1767666198352,0.10488579,93796.0,93781.0,0.010663]
[1767666198751,0.01420579,93795.0,93781.0,0.010663]
[1767666199267,0.01420579,93795.0,93778.0,0.010664]
[1767666199568,0.01420579,93794.0,93778.0,0.010664]
[1767666199861,0.01420579,93794.0,93780.0,0.010663]
[1767666200169,0.09248404,93795.0,93776.0,0.01343296]
[1767666203064,0.09248404,93795.0,93785.0,0.010663]
[1767666203262,0.01420579,93801.0,93785.0,0.010663]
[1767666203563,0.01420579,93801.0,93791.0,0.010662]
[1767666203766,0.01420579,93801.0,93782.0,0.01343296]
[1767666203964,0.10668983,93801.0,93782.0,0.01343296]
[1767666204165,0.01420579,93800.0,93789.0,0.010662]
[1767666204366,0.10668983,93800.0,93789.0,0.010662]
[1767666205071,0.01420579,93799.0,93789.0,0.010662]
[1767666205262,0.10668983,93799.0,93789.0,0.010662]
[1767666205672,0.10668983,93799.0,93786.0,0.010663]
[1767666205860,0.09068,93803.0,93778.0,0.010664]
[1767666205861,0.10668983,93797.0,93778.0,0.010664]
[1767666206066,0.10668983,93793.0,93784.0,0.010663]
[1767666207278,0.101341,93803.0,93770.0,0.09068]
[1767666207279,0.10668983,93785.0,93770.0,0.09068]
[1767666207476,0.10668983,93785.0,93765.0,0.01343296]
[1767666207477,0.01420579,93784.0,93765.0,0.01343296]
[1767666207676,0.01420579,93784.0,93766.0,0.09068]
[1767666207870,0.09248404,93785.0,93767.0,0.01343296]
[1767666208177,0.09248404,93785.0,93773.0,0.010664]
[1767666208475,0.10668983,93778.0,93774.0,0.09068]
[1767666208676,0.01420579,93782.0,93774.0,0.09068]
[1767666209372,0.01420579,93782.0,93770.0,0.010664]
[1767666209676,0.01420579,93782.0,93772.0,0.010664]
[1767666209876,0.09248404,93783.0,93772.0,0.010664]
[1767666210679,0.09248404,93783.0,93771.0,0.09068]
[1767666211873,0.10776637,93783.0,93771.0,0.09068]
[1767666212075,0.01528233,93780.0,93771.0,0.09068]
[1767666212276,0.01528233,93778.0,93771.0,0.09068]
[1767666212476,0.10690239,93778.0,93771.0,0.0750319]
[1767666212877,0.09162006,93778.0,93771.0,0.0750319]
[1767666215281,0.01528233,93782.0,93771.0,0.0750319]
[1767666215583,0.10690239,93782.0,93771.0,0.0750319]
[1767666219177,0.09162006,93779.0,93771.0,0.0750319]
[1767666219387,0.01528233,93777.0,93767.0,0.09068]
[1767666220384,0.10690239,93777.0,93767.0,0.09068]
[1767666220685,0.01528233,93774.0,93767.0,0.05994108]
[1767666220881,0.09162006,93775.0,93767.0,0.07060608]
[1767666221586,0.09162006,93775.0,93767.0,0.05994108]
[1767666224985,0.10690239,93772.0,93760.0,0.09068]
[1767666225192,0.10690239,93772.0,93760.0,0.18901993]
[1767666225388,0.010664,93775.0,93760.0,0.18901993]
[1767666225686,0.010664,93775.0,93760.0,0.19968593]
[1767666226291,0.01528233,93776.0,93760.0,0.19968593]
[1767666226779,0.02594633,93776.0,93760.0,0.19968593]
[1767666228692,0.09162006,93778.0,93762.0,0.010665]
[1767666232288,0.10690239,93778.0,93760.0,0.18901993]
[1767666232488,0.01528233,93772.0,93760.0,0.18901993]
[1767666232683,0.09162006,93774.0,93760.0,0.18901993]
[1767666232888,0.09162006,93774.0,93760.0,0.19968593]
[1767666233089,0.02594633,93776.0,93760.0,0.19968593]
[1767666233503,0.10228306,93779.0,93762.0,0.010665]
[1767666234397,0.11756539,93779.0,93762.0,0.010665]
[1767666234698,0.010664,93777.0,93762.0,0.010665]
[1767666240204,0.10690239,93779.0,93760.0,0.18901993]
[1767666240601,0.10690239,93779.0,93761.0,0.010665]
[1767666240798,0.01487552,93784.0,93763.0,0.01592792]
[1767666242008,0.01487552,93784.0,93765.0,0.010665]
[1767666242307,0.02553852,93784.0,93767.0,0.010665]
[1767666242709,0.01618665,93783.0,93767.0,0.010665]
[1767666243605,0.010663,93784.0,93767.0,0.010665]
[1767666243606,0.010663,93784.0,93767.0,0.02571051]
[1767666243811,0.09068,93787.0,93771.0,0.01504551]
[1767666244706,0.09068,93787.0,93770.0,0.20829592]
[1767666244707,0.101343,93787.0,93770.0,0.19763192]
[1767666245009,0.01618665,93784.0,93770.0,0.09833993]
[1767666245315,0.01618665,93784.0,93767.0,0.010665]
[1767666245703,0.10198192,93785.0,93767.0,0.010665]
[1767666246609,0.09131892,93785.0,93770.0,0.010664]
[1767666246913,0.09068,93787.0,93770.0,0.010664]
[1767666247113,0.09068,93787.0,93770.0,0.10900393]
[1767666250814,0.101343,93787.0,93770.0,0.10900393]
[1767666251015,0.101343,93787.0,93770.0,0.09833993]
[1767666253322,0.101343,93787.0,93769.0,0.010664]
[1767666253617,0.101343,93787.0,93770.0,0.09833993]
[1767666253818,0.09068,93787.0,93770.0,0.09833993]
[1767666254012,0.09068,93787.0,93773.0,0.010664]
[1767666254212,0.09068,93787.0,93771.0,0.010664]
[1767666256132,0.10686665,93787.0,93771.0,0.010664]
[1767666256432,0.11752965,93787.0,93770.0,0.09833993]
[1767666256824,0.10686665,93787.0,93771.0,0.010664]
[1767666257225,0.10686665,93787.0,93770.0,0.09833993]
[1767666257526,0.01618665,93794.0,93777.0,0.09833993]
[1767666257720,0.09068,93794.0,93780.0,0.09833993]
[1767666257921,0.101342,93794.0,93780.0,0.09833993]
[1767666258120,0.101342,93794.0,93774.0,0.09929199]
[1767666258121,0.010662,93792.0,93775.0,0.010664]
[1767666258338,0.02684865,93792.0,93775.0,0.010664]
[1767666259032,0.09131892,93794.0,93780.0,0.09833993]
[1767666259324,0.10686665,93796.0,93780.0,0.10900293]
[1767666259916,0.09068,93796.0,93780.0,0.10900293]
[1767666260832,0.10686665,93796.0,93780.0,0.10900293]
[1767666261430,0.01618665,93796.0,93780.0,0.10900293]
[1767666261626,0.10686665,93796.0,93780.0,0.10900293]
[1767666262738,0.10686665,93796.0,93780.0,0.09833993]
[1767666263440,0.11752865,93796.0,93781.0,0.010663]
[1767666265041,0.10686665,93796.0,93780.0,0.09833993]
[1767666265540,0.01618665,93796.0,93785.0,0.010663]
[1767666265742,0.01618665,93796.0,93780.0,0.09833993]
[1767666265743,0.10686665,93796.0,93780.0,0.09833993]
[1767666265943,0.10686665,93796.0,93783.0,0.010663]
[1767666266945,0.10686665,93796.0,93780.0,0.010663]
[1767666267132,0.0159965,93795.0,93777.0,0.010664]
[1767666267440,0.09131892,93795.0,93777.0,0.010664]
[1767666268144,0.010662,93793.0,93777.0,0.010664]
[1767666268844,0.09131892,93795.0,93774.0,0.09929199]
[1767666269248,0.01368987,93794.0,93774.0,0.09929199]
[1767666270242,0.01368987,93794.0,93778.0,0.010663]
[1767666270437,0.010662,93793.0,93778.0,0.010663]
[1767666270644,0.010662,93793.0,93775.0,0.010664]
[1767666271549,0.010662,93793.0,93777.0,0.010664]
[1767666271751,0.10900193,93790.0,93774.0,0.10995599]
[1767666272042,0.10900193,93790.0,93774.0,0.010664]
[1767666272043,0.01333008,93788.0,93774.0,0.010664]
[1767666276239,0.01333008,93788.0,93770.0,0.09833993]
[1767666276435,0.01333008,93788.0,93774.0,0.010664]
[1767666277852,0.01333008,93788.0,93771.0,0.101344]
[1767666278742,0.01333008,93788.0,93773.0,0.010664]
[1767666279950,0.01226036,93786.0,93771.0,0.09068]
[1767666280138,0.010663,93783.0,93771.0,0.09068]
[1767666280453,0.01226036,93783.0,93771.0,0.09068]
[1767666280754,0.01211892,93782.0,93771.0,0.09068]
[1767666280951,0.01211892,93782.0,93767.0,0.010665]
[1767666281154,0.01211892,93782.0,93767.0,0.101345]
[1767666281452,0.0911914,93783.0,93770.0,0.010664]
[1767666281843,0.0911914,93783.0,93767.0,0.101345]
[1767666283350,0.02278192,93785.0,93767.0,0.11616173]
[1767666284349,0.02278192,93785.0,93769.0,0.010664]
[1767666285755,0.01211892,93785.0,93771.0,0.010664]
[1767666287053,0.01121825,93787.0,93771.0,0.010664]
[1767666287259,0.010663,93786.0,93771.0,0.010664]
[1767666287455,0.01121825,93787.0,93771.0,0.010664]
[1767666288451,0.010663,93786.0,93771.0,0.010664]
[1767666288950,0.010662,93794.0,93778.0,0.01481673]
[1767666289155,0.09068,93794.0,93779.0,0.02054761]
[1767666289359,0.010663,93786.0,93771.0,0.09574659]
[1767666289559,0.01405432,93788.0,93768.0,0.010665]
[1767666289948,0.010663,93785.0,93770.0,0.010664]
[1767666291150,0.02471632,93788.0,93770.0,0.010664]
[1767666291563,0.010663,93786.0,93770.0,0.010664]
[1767666291759,0.01405432,93788.0,93770.0,0.010664]
[1767666293664,0.01405432,93788.0,93772.0,0.010664]
[1767666294458,0.010662,93787.0,93772.0,0.010664]
[1767666295256,0.010662,93787.0,93769.0,0.02548073]
[1767666295453,0.02446582,93785.0,93769.0,0.010664]
[1767666295659,0.01380282,93783.0,93767.0,0.09068]
[1767666296158,0.01380282,93782.0,93767.0,0.09068]
[1767666296560,0.02446582,93782.0,93767.0,0.101345]
[1767666296861,0.01380282,93782.0,93767.0,0.101345]
[1767666298356,0.10979244,93783.0,93767.0,0.101345]
[1767666299257,0.09912944,93783.0,93767.0,0.09068]
[1767666299458,0.01380282,93785.0,93767.0,0.10400731]
[1767666299958,0.010662,93788.0,93767.0,0.10400731]
[1767666300144,0.010662,93791.0,93773.0,0.010664]
[1767666300351,0.010662,93790.0,93773.0,0.010664]
[1767666300654,0.01380282,93784.0,93767.0,0.09068]
[1767666300859,0.010663,93781.0,93767.0,0.09068]
[1767666301358,0.01364879,93777.0,93761.0,0.010665]
[1767666301560,0.09068,93794.0,93743.0,0.010667]
[1767666301561,0.01364879,93771.0,93760.0,0.09068]
[1767666301952,0.0900999,93772.0,93760.0,0.09068]
[1767666302152,0.02431279,93775.0,93760.0,0.09068]
[1767666302352,0.01364879,93775.0,93760.0,0.09068]
[1767666302549,0.09068,93779.0,93763.0,0.010665]
[1767666302748,0.01364879,93786.0,93764.0,0.09428014]
[1767666302950,0.09068,93785.0,93768.0,0.01251996]
[1767666303160,0.09068,93785.0,93771.0,0.09428014]
[1767666303364,0.09068,93785.0,93773.0,0.01251996]
[1767666303666,0.010662,93791.0,93773.0,0.01251996]
[1767666303848,0.09068,93790.0,93773.0,0.01251996]
[1767666304054,0.010662,93789.0,93773.0,0.01251996]
[1767666305262,0.010663,93787.0,93773.0,0.01251996]
[1767666308160,0.010662,93790.0,93773.0,0.02318396]
[1767666308358,0.010662,93793.0,93777.0,0.01251996]
[1767666308574,0.09068,93792.0,93778.0,0.01251996]
[1767666308770,0.09068,93792.0,93777.0,0.10494414]
[1767666308955,0.010662,93791.0,93774.0,0.02318396]
[1767666313062,0.09068,93792.0,93774.0,0.01251996]
[1767666313275,0.010663,93783.0,93768.0,0.01251996]
[1767666313768,0.010663,93783.0,93767.0,0.09428014]
[1767666313769,0.010663,93781.0,93767.0,0.09428014]
[1767666314471,0.010663,93781.0,93765.0,0.010665]
[1767666315162,0.010663,93781.0,93765.0,0.02318496]
[1767666315874,0.010663,93781.0,93765.0,0.01251996]
[1767666316083,0.010663,93779.0,93762.0,0.10494514]
[1767666316264,0.010663,93779.0,93762.0,0.1174651]
[1767666316568,0.0131238,93782.0,93762.0,0.1068001]
[1767666317068,0.0131238,93782.0,93767.0,0.010665]
[1767666317275,0.0900999,93783.0,93767.0,0.010665]
[1767666317571,0.010663,93782.0,93768.0,0.01251996]
[1767666319074,0.010663,93783.0,93768.0,0.01251996]
[1767666319475,0.010663,93783.0,93767.0,0.09428014]
[1767666319667,0.0130251,93787.0,93767.0,0.09428014]
[1767666319868,0.010663,93781.0,93765.0,0.01251996]
[1767666320063,0.010663,93781.0,93765.0,0.02318496]
[1767666321375,0.010663,93781.0,93766.0,0.01251996]
[1767666323177,0.01188555,93783.0,93765.0,0.09428014]
[1767666323474,0.01364879,93775.0,93755.0,0.010666]
[1767666323661,0.01364879,93775.0,93755.0,0.10494614]
[1767666324075,0.010664,93774.0,93758.0,0.010666]
[1767666324471,0.01364879,93778.0,93761.0,0.010665]
[1767666324670,0.01364879,93781.0,93761.0,0.010665]
[1767666325168,0.010664,93774.0,93758.0,0.10494614]
[1767666325370,0.010664,93774.0,93758.0,0.1174661]
[1767666325765,0.010664,93774.0,93760.0,0.010666]
[1767666325965,0.010664,93774.0,93761.0,0.01251996]
[1767666326174,0.010664,93777.0,93761.0,0.1068001]
[1767666326379,0.010664,93777.0,93766.0,0.01251996]
[1767666326573,0.0900999,93788.0,93771.0,0.010664]
[1767666326574,0.09068,93781.0,93771.0,0.010664]
[1767666327473,0.010662,93788.0,93771.0,0.010664]
[1767666327680,0.010663,93786.0,93771.0,0.01251996]
[1767666327878,0.010663,93786.0,93768.0,0.02318496]
[1767666328277,0.01307392,93795.0,93776.0,0.010664]
[1767666328476,0.101342,93794.0,93778.0,0.02318296]
[1767666328676,0.101342,93794.0,93778.0,0.01251996]
[1767666328877,0.101342,93794.0,93779.0,0.010663]
[1767666329077,0.101342,93794.0,93778.0,0.01251996]
[1767666329477,0.101342,93794.0,93778.0,0.02318296]
[1767666329677,0.101342,93794.0,93778.0,0.01251996]
[1767666330478,0.101342,93794.0,93776.0,0.09428014]
[1767666330674,0.101342,93794.0,93777.0,0.02318396]
[1767666333076,0.010661,93797.0,93785.0,0.11032733]
[1767666333375,0.09068,93798.0,93785.0,0.09849653]
[1767666333584,0.010662,93794.0,93779.0,0.09849653]
[1767666334183,0.01227177,93788.0,93772.0,0.010664]
[1767666334573,0.01215362,93791.0,93776.0,0.010664]
[1767666334775,0.01215362,93793.0,93776.0,0.010664]
[1767666334972,0.010661,93797.0,93784.0,0.0118308]
[1767666335179,0.09068,93797.0,93786.0,0.0118308]
[1767666335388,0.09068,93797.0,93785.0,0.09849653]
[1767666335685,0.010661,93796.0,93778.0,0.010663]
[1767666336370,0.010662,93794.0,93778.0,0.010663]
[1767666336778,0.010662,93792.0,93773.0,0.010664]
[1767666336985,0.010662,93790.0,93773.0,0.010664]
[1767666337277,0.01234689,93793.0,93767.0,0.010665]
[1767666337482,0.01234689,93793.0,93765.0,0.09068]
[1767666337683,0.01234689,93793.0,93766.0,0.11032733]
[1767666337883,0.01234689,93793.0,93770.0,0.09849653]
[1767666338083,0.01234689,93793.0,93772.0,0.0118308]
[1767666338480,0.01234689,93793.0,93778.0,0.010663]
[1767666338786,0.010662,93795.0,93778.0,0.010663]
[1767666339185,0.010662,93795.0,93775.0,0.0224948]
[1767666339984,0.010662,93795.0,93777.0,0.010664]
[1767666340187,0.010662,93793.0,93775.0,0.0118308]
[1767666340479,0.11327234,93796.0,93779.0,0.010663]
[1767666341077,0.11327234,93796.0,93780.0,0.09832541]
[1767666343492,0.11327234,93796.0,93781.0,0.010663]
[1767666345486,0.11327234,93796.0,93780.0,0.09832541]
[1767666346406,0.09026445,93796.0,93783.0,0.010663]
[1767666347409,0.09026445,93796.0,93780.0,0.09832541]
[1767666347710,0.09026445,93796.0,93783.0,0.010663]
[1767666347908,0.09026445,93796.0,93780.0,0.010663]
[1767666348110,0.10092645,93796.0,93780.0,0.10898841]
[1767666348298,0.09026445,93796.0,93782.0,0.010663]
[1767666350111,0.09026445,93796.0,93780.0,0.09832541]
[1767666350312,0.010662,93791.0,93780.0,0.09832541]
[1767666350503,0.11327334,93794.0,93780.0,0.09832541]
[1767666350912,0.09026445,93794.0,93781.0,0.010663]
[1767666353510,0.09026445,93794.0,93780.0,0.09832541]
[1767666354010,0.10092645,93794.0,93780.0,0.09832541]
[1767666354212,0.10302689,93797.0,93781.0,0.010663]
[1767666354213,0.09068,93797.0,93781.0,0.010663]
[1767666354399,0.09068,93797.0,93781.0,0.0224938]
[1767666354602,0.09068,93797.0,93781.0,0.010663]
[1767666355002,0.09068,93797.0,93783.0,0.010663]
[1767666355707,0.09026445,93800.0,93785.0,0.010663]
[1767666355913,0.09068,93799.0,93785.0,0.02245183]
[1767666356209,0.101341,93799.0,93782.0,0.010663]
[1767666356405,0.09068,93799.0,93784.0,0.010663]
[1767666357410,0.010661,93800.0,93784.0,0.010663]
[1767666357608,0.010661,93800.0,93780.0,0.09832541]
[1767666357609,0.09068,93803.0,93791.0,0.010662]
[1767666358401,0.09453136,93818.0,93795.0,0.01178883]
[1767666358606,0.09453136,93818.0,93808.0,0.09832541]
[1767666358806,0.09453136,93818.0,93800.0,0.12077524]
[1767666359406,0.01722215,93822.0,93805.0,0.01066]
[1767666359710,0.09832541,93830.0,93805.0,0.01066]
[1767666359711,0.10634416,93828.0,93812.0,0.09832541]
[1767666360012,0.0118128,93827.0,93812.0,0.09832541]
[1767666360215,0.10634416,93825.0,93812.0,0.09832541]
[1767666360508,0.10634416,93823.0,93801.0,0.01178883]
[1767666360708,0.01393624,93828.0,93801.0,0.01178883]
[1767666360709,0.10634416,93821.0,93805.0,0.01066]
[1767666361112,0.10634416,93821.0,93801.0,0.02244983]
[1767666361616,0.010659,93820.0,93801.0,0.02244983]
[1767666361805,0.010659,93820.0,93793.0,0.01199895]
[1767666361806,0.11950339,93812.0,93793.0,0.01199895]
[1767666362006,0.09756976,93816.0,93800.0,0.09832541]
[1767666362406,0.11950239,93821.0,93800.0,0.12098536]
[1767666363612,0.010659,93818.0,93800.0,0.12098536]
[1767666364211,0.01066,93813.0,93799.0,0.09068]
[1767666364404,0.11950339,93813.0,93799.0,0.09068]
[1767666365010,0.02193363,93811.0,93793.0,0.010662]
[1767666365209,0.10884339,93804.0,93785.0,0.02266195]
[1767666365409,0.10884339,93804.0,93790.0,0.09832541]
[1767666365608,0.10822976,93811.0,93791.0,0.02266095]
[1767666366311,0.01066,93809.0,93791.0,0.02266095]
[1767666366614,0.11950339,93809.0,93791.0,0.02266095]
[1767666367015,0.01066,93807.0,93791.0,0.01199895]
[1767666367215,0.01066,93807.0,93790.0,0.09832541]
[1767666367415,0.010661,93804.0,93791.0,0.09068]
[1767666367918,0.11950339,93807.0,93791.0,0.09068]
[1767666368121,0.10822976,93807.0,93791.0,0.09068]
[1767666368420,0.10822976,93807.0,93791.0,0.101342]
[1767666368614,0.10822976,93807.0,93791.0,0.09068]
[1767666369420,0.010661,93805.0,93791.0,0.09068]
[1767666370109,0.010661,93805.0,93788.0,0.010662]
[1767666370314,0.010661,93805.0,93790.0,0.09068]
[1767666370617,0.01127363,93805.0,93784.0,0.09557291]
[1767666370818,0.01127363,93805.0,93779.0,0.09281268]
[1767666370819,0.10884339,93794.0,93779.0,0.09281268]
[1767666371008,0.010662,93790.0,93779.0,0.09281268]
[1767666371511,0.10884339,93792.0,93779.0,0.00213268]
[1767666371707,0.010661,93804.0,93768.0,0.09557291]
[1767666371708,0.10884339,93788.0,93768.0,0.09557291]
[1767666371908,0.10884339,93788.0,93770.0,0.10898941]
[1767666372112,0.09756976,93788.0,93771.0,0.09068]
[1767666372315,0.09756976,93788.0,93771.0,0.10267895]
[1767666372510,0.09756976,93788.0,93772.0,0.010664]
[1767666373126,0.09756976,93788.0,93771.0,0.10267895]
[1767666373923,0.09756976,93788.0,93772.0,0.010664]
[1767666374225,0.09756976,93788.0,93771.0,0.10267895]
[1767666374626,0.09756976,93788.0,93771.0,0.11334295]